[Event "Live Chess"]
[Site "Chess.com"]
[Date "2024.06.02"]
[Round "-"]
[White "missedJariChance"]
[Black "juniortay"]
[Result "0-1"]
[WhiteElo "1353"]
[BlackElo "2355"]
[TimeControl "300"]
[EndTime "4:37:06 PDT"]
[Termination "juniortay won by resignation"]

1. d4 {[%clk 0:04:54.9]} 1... d5 {[%clk 0:04:59.1]} 2. c4 {[%clk 0:04:50.3]}
2... e6 {[%clk 0:04:58.2]} 3. Nc3 {[%clk 0:04:49.2]} 3... c5 {[%clk 0:04:57.7]}
4. cxd5 {[%clk 0:04:41.8]} 4... exd5 {[%clk 0:04:57.6]} 5. e3 {[%clk 0:04:38]}
5... Nc6 {[%clk 0:04:56.4]} 6. Nf3 {[%clk 0:04:36.5]} 6... Nf6 {[%clk
0:04:55.5]} 7. Bb5 {[%clk 0:04:34.7]} 7... cxd4 {[%clk 0:04:54.3]} 8. exd4
{[%clk 0:04:31.3]} 8... Bd6 {[%clk 0:04:52]} 9. O-O {[%clk 0:04:29]} 9... h6
{[%clk 0:04:51]} 10. Qb3 {[%clk 0:04:14.3]} 10... O-O {[%clk 0:04:48.6]} 11. Re1
{[%clk 0:04:03.2]} 11... Bg4 {[%clk 0:04:46.4]} 12. Ne5 {[%clk 0:03:47.3]} 12...
Nxd4 {[%clk 0:04:42.8]} 13. Qa4 {[%clk 0:03:23.8]} 13... Nxb5 {[%clk 0:04:40]}
14. Nxb5 {[%clk 0:03:08.9]} 14... Bxe5 {[%clk 0:04:32.5]} 15. Rxe5 {[%clk
0:03:00.4]} 15... Bd7 {[%clk 0:04:31]} 16. Qb3 {[%clk 0:02:49.7]} 16... Bc6
{[%clk 0:04:12.9]} 17. Be3 {[%clk 0:02:38.5]} 17... Ng4 {[%clk 0:04:02.3]} 18.
Rf5 {[%clk 0:02:17.5]} 18... Qd7 {[%clk 0:03:56.5]} 19. Nd4 {[%clk 0:02:08.3]}
19... Rae8 {[%clk 0:03:52.8]} 20. Nxc6 {[%clk 0:02:00.6]} 20... Qxf5 {[%clk
0:03:49.5]} 21. Nd4 {[%clk 0:01:46.5]} 21... Qh5 {[%clk 0:03:44.8]} 22. h3
{[%clk 0:01:41]} 22... Nxe3 {[%clk 0:03:43.1]} 23. fxe3 {[%clk 0:01:39.3]} 23...
Qg5 {[%clk 0:03:32.6]} 24. Re1 {[%clk 0:01:29.6]} 24... Re4 {[%clk 0:03:27.7]}
25. Nf3 {[%clk 0:01:17.6]} 25... Qe7 {[%clk 0:03:26.2]} 26. Qxd5 {[%clk
0:01:01.5]} 26... Rxe3 {[%clk 0:03:23.4]} 27. Rxe3 {[%clk 0:00:57.3]} 27...
Qxe3+ {[%clk 0:03:21.9]} 28. Kh2 {[%clk 0:00:56.7]} 28... b6 {[%clk 0:03:17.3]}
29. Ne5 {[%clk 0:00:48.6]} 29... Qf4+ {[%clk 0:03:13.8]} 30. g3 {[%clk
0:00:43.8]} 30... Qf2+ {[%clk 0:03:10.7]} 31. Kh1 {[%clk 0:00:31]} 31... Qxg3
{[%clk 0:03:07.7]} 32. Ng4 {[%clk 0:00:26.6]} 32... Qxh3+ {[%clk 0:03:05.2]} 0-1

[Event "Live Chess"]
[Site "Chess.com"]
[Date "2024.06.02"]
[Round "-"]
[White "ProfPoisson"]
[Black "kylet1990"]
[Result "1-0"]
[WhiteElo "1334"]
[BlackElo "750"]
[TimeControl "300"]
[EndTime "4:37:15 PDT"]
[Termination "ProfPoisson won by resignation"]

1. e4 {[%clk 0:04:54.8]} 1... c6 {[%clk 0:04:58.6]} 2. d4 {[%clk 0:04:53.4]}
2... d5 {[%clk 0:04:57.6]} 3. exd5 {[%clk 0:04:53]} 3... cxd5 {[%clk 0:04:56.5]}
4. c4 {[%clk 0:04:52.7]} 4... Bf5 {[%clk 0:04:53.6]} 5. Nc3 {[%clk 0:04:49.9]}
5... e6 {[%clk 0:04:51]} 6. Nf3 {[%clk 0:04:47.6]} 6... Nf6 {[%clk 0:04:48.9]}
7. Qb3 {[%clk 0:04:45.5]} 7... Nc6 {[%clk 0:04:45.1]} 8. Qxb7 {[%clk 0:04:43]}
8... Rb8 {[%clk 0:04:43.7]} 9. Qxc6+ {[%clk 0:04:41.1]} 9... Ke7 {[%clk
0:04:39.7]} 10. cxd5 {[%clk 0:04:23.3]} 10... Rc8 {[%clk 0:04:37.9]} 11. d6+
{[%clk 0:04:16.3]} 11... Qxd6 {[%clk 0:04:29.3]} 12. Qxc8 {[%clk 0:04:11.8]}
12... Ne4 {[%clk 0:04:22.8]} 1-0

[Event "Live Chess"]
[Site "Chess.com"]
[Date "2024.06.02"]
[Round "-"]
[White "elephantgerrald"]
[Black "f4nomore"]
[Result "0-1"]
[WhiteElo "873"]
[BlackElo "1277"]
[TimeControl "300"]
[EndTime "4:37:38 PDT"]
[Termination "f4nomore won by checkmate"]

1. e4 {[%clk 0:04:56.5]} 1... g6 {[%clk 0:04:59.9]} 2. d4 {[%clk 0:04:54]} 2...
Bg7 {[%clk 0:04:59.8]} 3. Nf3 {[%clk 0:04:52.1]} 3... d6 {[%clk 0:04:58.7]} 4.
Nc3 {[%clk 0:04:51.1]} 4... Nf6 {[%clk 0:04:56.2]} 5. Bf4 {[%clk 0:04:50.2]}
5... O-O {[%clk 0:04:54.8]} 6. Bc4 {[%clk 0:04:48.4]} 6... e6 {[%clk 0:04:52.4]}
7. O-O {[%clk 0:04:46.9]} 7... Nc6 {[%clk 0:04:49.7]} 8. a3 {[%clk 0:04:44.9]}
8... e5 {[%clk 0:04:48.4]} 9. dxe5 {[%clk 0:04:42.4]} 9... dxe5 {[%clk
0:04:44.7]} 10. Nxe5 {[%clk 0:04:39.8]} 10... Qxd1 {[%clk 0:04:42.2]} 11. Rfxd1
{[%clk 0:04:34]} 11... Na5 {[%clk 0:04:32.9]} 12. b4 {[%clk 0:04:28.1]} 12...
Nxc4 {[%clk 0:04:30.4]} 13. Nxc4 {[%clk 0:04:25.6]} 13... Be6 {[%clk 0:04:24.5]}
14. Na5 {[%clk 0:04:13.5]} 14... b6 {[%clk 0:04:08.2]} 15. Nc6 {[%clk
0:04:05.4]} 15... Nh5 {[%clk 0:04:00.2]} 16. Bxc7 {[%clk 0:03:54.5]} 16... Bxc3
{[%clk 0:03:55.7]} 17. Rab1 {[%clk 0:03:49.8]} 17... Bg7 {[%clk 0:03:43.8]} 18.
f3 {[%clk 0:03:34.5]} 18... Ba2 {[%clk 0:03:39.8]} 19. Ne7+ {[%clk 0:03:16.2]}
19... Kh8 {[%clk 0:03:36.7]} 20. g4 {[%clk 0:03:02.4]} 20... Nf4 {[%clk
0:03:33.2]} 21. e5 {[%clk 0:02:40.7]} 21... Bxb1 {[%clk 0:03:28.7]} 22. e6
{[%clk 0:02:37.8]} 22... Nxe6 {[%clk 0:03:20]} 23. Re1 {[%clk 0:02:33.3]} 23...
Bxc2 {[%clk 0:03:15.8]} 24. Re5 {[%clk 0:02:31.4]} 24... Bxe5 {[%clk 0:03:02.4]}
25. Bxe5+ {[%clk 0:02:29.7]} 25... f6 {[%clk 0:03:01.3]} 26. Bxf6+ {[%clk
0:02:25.4]} 26... Rxf6 {[%clk 0:02:59.2]} 27. Nxg6+ {[%clk 0:02:24.2]} 27...
hxg6 {[%clk 0:02:56.7]} 28. h4 {[%clk 0:02:24.1]} 28... Rxf3 {[%clk 0:02:54.5]}
29. Kg2 {[%clk 0:02:18.5]} 29... Rxa3 {[%clk 0:02:52.6]} 30. h5 {[%clk
0:02:18.4]} 30... gxh5 {[%clk 0:02:50.5]} 31. gxh5 {[%clk 0:02:17.3]} 31... Rg8+
{[%clk 0:02:48]} 32. Kh1 {[%clk 0:02:13.6]} 32... Be4+ {[%clk 0:02:45.8]} 33.
Kh2 {[%clk 0:02:12.2]} 33... Rd8 {[%clk 0:02:43]} 34. b5 {[%clk 0:02:09.7]}
34... Rd2+ {[%clk 0:02:41.2]} 35. Kg1 {[%clk 0:02:08.3]} 35... Ra1# {[%clk
0:02:40.1]} 0-1

[Event "Live Chess"]
[Site "Chess.com"]
[Date "2024.06.02"]
[Round "-"]
[White "MaksymYurii"]
[Black "MagnersCarlsberg2870"]
[Result "0-1"]
[WhiteElo "1005"]
[BlackElo "1775"]
[TimeControl "300"]
[EndTime "4:38:11 PDT"]
[Termination "MagnersCarlsberg2870 won by checkmate"]

1. e4 {[%clk 0:04:51.8]} 1... e5 {[%clk 0:04:57.4]} 2. Nf3 {[%clk 0:04:50.4]}
2... Nf6 {[%clk 0:04:54.2]} 3. Bc4 {[%clk 0:04:49.3]} 3... Bc5 {[%clk
0:04:46.2]} 4. d3 {[%clk 0:04:46.8]} 4... Nc6 {[%clk 0:04:43.4]} 5. O-O {[%clk
0:04:44.9]} 5... h6 {[%clk 0:04:42.2]} 6. Nc3 {[%clk 0:04:42.9]} 6... d6 {[%clk
0:04:41.3]} 7. Be3 {[%clk 0:04:40.9]} 7... Bg4 {[%clk 0:04:36]} 8. Bxc5 {[%clk
0:04:37.5]} 8... dxc5 {[%clk 0:04:35.1]} 9. Bxf7+ {[%clk 0:04:28.6]} 9... Kxf7
{[%clk 0:04:33.5]} 10. Nxe5+ {[%clk 0:04:25.8]} 10... Nxe5 {[%clk 0:04:31.8]}
11. f3 {[%clk 0:04:19.7]} 11... Be6 {[%clk 0:04:28.7]} 12. f4 {[%clk 0:04:18.1]}
12... Qd4+ {[%clk 0:04:26.4]} 13. Kh1 {[%clk 0:04:14.9]} 13... Neg4 {[%clk
0:04:25.1]} 14. f5 {[%clk 0:04:10.4]} 14... Nf2+ {[%clk 0:04:23.8]} 15. Rxf2
{[%clk 0:04:07.4]} 15... Qxf2 {[%clk 0:04:22.6]} 16. fxe6+ {[%clk 0:04:02.2]}
16... Kxe6 {[%clk 0:04:21.6]} 17. d4 {[%clk 0:03:50.1]} 17... Rad8 {[%clk
0:04:19.1]} 18. d5+ {[%clk 0:03:48.2]} 18... Kd7 {[%clk 0:04:17.4]} 19. e5
{[%clk 0:03:44]} 19... Ne8 {[%clk 0:03:52.3]} 20. Qg4+ {[%clk 0:03:38]} 20...
Ke7 {[%clk 0:03:50.9]} 21. Qe6+ {[%clk 0:03:35.3]} 21... Kf8 {[%clk 0:03:49.3]}
22. Ne4 {[%clk 0:03:14.8]} 22... Qf7 {[%clk 0:03:45.4]} 23. Qxf7+ {[%clk
0:03:08.3]} 23... Kxf7 {[%clk 0:03:44.2]} 24. Rf1+ {[%clk 0:03:06.3]} 24... Ke7
{[%clk 0:03:33.3]} 25. e6 {[%clk 0:03:01.5]} 25... Rxd5 {[%clk 0:03:30.3]} 26.
Nc3 {[%clk 0:02:46.9]} 26... Rd2 {[%clk 0:03:24.3]} 27. Re1 {[%clk 0:02:40.4]}
27... Rf8 {[%clk 0:03:21.8]} 28. h3 {[%clk 0:02:37.2]} 28... Rff2 {[%clk
0:03:19.8]} 29. Ne4 {[%clk 0:02:31.1]} 29... Rfe2 {[%clk 0:03:10.6]} 30. Nxd2
{[%clk 0:02:22]} 30... Rxe1+ {[%clk 0:03:09.1]} 31. Kh2 {[%clk 0:02:20]} 31...
Kxe6 {[%clk 0:03:05.7]} 32. c4 {[%clk 0:02:17]} 32... Re2 {[%clk 0:03:01.4]} 33.
Nb3 {[%clk 0:02:12.6]} 33... b6 {[%clk 0:02:58.7]} 34. a4 {[%clk 0:02:04.1]}
34... Nf6 {[%clk 0:02:51.5]} 35. a5 {[%clk 0:02:01]} 35... Nh5 {[%clk
0:02:49.2]} 36. axb6 {[%clk 0:01:57]} 36... cxb6 {[%clk 0:02:45]} 37. Nc1 {[%clk
0:01:53.6]} 37... Rxb2 {[%clk 0:02:42.3]} 38. Nd3 {[%clk 0:01:52]} 38... Rc2
{[%clk 0:02:38.1]} 39. Nf2 {[%clk 0:01:30.5]} 39... Rxf2 {[%clk 0:02:36.2]} 40.
h4 {[%clk 0:01:26.3]} 40... a5 {[%clk 0:02:31.2]} 41. Kh3 {[%clk 0:01:24.7]}
41... a4 {[%clk 0:02:28.1]} 42. g4 {[%clk 0:01:22.7]} 42... Nf4+ {[%clk
0:02:23.8]} 43. Kg3 {[%clk 0:01:21]} 43... Nd3 {[%clk 0:02:22.1]} 44. g5 {[%clk
0:01:16.9]} 44... hxg5 {[%clk 0:02:04.7]} 45. hxg5 {[%clk 0:01:16.8]} 45... Kf5
{[%clk 0:02:02.8]} 46. Kh4 {[%clk 0:01:14.4]} 46... Rf4+ {[%clk 0:01:54.9]} 47.
Kg3 {[%clk 0:01:12.8]} 47... Kxg5 {[%clk 0:01:53.4]} 48. Kg2 {[%clk 0:01:10.5]}
48... Kg4 {[%clk 0:01:50.8]} 49. Kh2 {[%clk 0:01:08.7]} 49... Rf2+ {[%clk
0:01:48.2]} 50. Kg1 {[%clk 0:01:07.3]} 50... Kg3 {[%clk 0:01:46.6]} 51. Kh1
{[%clk 0:01:05.7]} 51... Rf1# {[%clk 0:01:45.7]} 0-1

[Event "Live Chess"]
[Site "Chess.com"]
[Date "2024.06.02"]
[Round "-"]
[White "Grace6363"]
[Black "blunderabit"]
[Result "0-1"]
[WhiteElo "1150"]
[BlackElo "1760"]
[TimeControl "300"]
[EndTime "4:38:11 PDT"]
[Termination "blunderabit won by checkmate"]

1. d4 {[%clk 0:04:57.6]} 1... d5 {[%clk 0:04:57]} 2. c4 {[%clk 0:04:56.3]} 2...
dxc4 {[%clk 0:04:55.1]} 3. e4 {[%clk 0:04:54.8]} 3... Nf6 {[%clk 0:04:52.6]} 4.
e5 {[%clk 0:04:53.6]} 4... Nd5 {[%clk 0:04:52.1]} 5. Bxc4 {[%clk 0:04:53.2]}
5... Nb6 {[%clk 0:04:50.8]} 6. Bb3 {[%clk 0:04:52.1]} 6... Nc6 {[%clk
0:04:48.8]} 7. Nf3 {[%clk 0:04:51.1]} 7... Bf5 {[%clk 0:04:45.2]} 8. Bd2 {[%clk
0:04:49.7]} 8... e6 {[%clk 0:04:43.4]} 9. Nc3 {[%clk 0:04:48.3]} 9... Nxd4
{[%clk 0:04:37.4]} 10. Nxd4 {[%clk 0:04:47.2]} 10... Qxd4 {[%clk 0:04:35.5]} 11.
Rc1 {[%clk 0:04:39.8]} 11... Qxe5+ {[%clk 0:04:31.8]} 12. Be3 {[%clk 0:04:33.5]}
12... c6 {[%clk 0:04:21.9]} 13. O-O {[%clk 0:04:30.1]} 13... Rd8 {[%clk
0:04:17.8]} 14. Qf3 {[%clk 0:04:28.5]} 14... Bd6 {[%clk 0:04:10.7]} 15. Rcd1
{[%clk 0:04:27]} 15... Qxh2# {[%clk 0:04:08]} 0-1

[Event "Live Chess"]
[Site "Chess.com"]
[Date "2024.06.02"]
[Round "-"]
[White "upoe610"]
[Black "KyryloPoluliakh"]
[Result "1-0"]
[WhiteElo "2141"]
[BlackElo "1526"]
[TimeControl "300"]
[EndTime "4:38:25 PDT"]
[Termination "upoe610 won by checkmate"]

1. e4 {[%clk 0:04:57.1]} 1... c5 {[%clk 0:04:58.7]} 2. d4 {[%clk 0:04:55.6]}
2... cxd4 {[%clk 0:04:57.1]} 3. c3 {[%clk 0:04:55.5]} 3... Nf6 {[%clk
0:04:53.2]} 4. e5 {[%clk 0:04:54.2]} 4... Nd5 {[%clk 0:04:51.7]} 5. cxd4 {[%clk
0:04:54.1]} 5... Nc6 {[%clk 0:04:49]} 6. Nf3 {[%clk 0:04:53.1]} 6... d6 {[%clk
0:04:47.7]} 7. Nc3 {[%clk 0:04:52]} 7... dxe5 {[%clk 0:04:46.1]} 8. dxe5 {[%clk
0:04:51.1]} 8... Nxc3 {[%clk 0:04:44.7]} 9. Qxd8+ {[%clk 0:04:49.8]} 9... Kxd8
{[%clk 0:04:40.3]} 10. bxc3 {[%clk 0:04:48.7]} 10... Bg4 {[%clk 0:04:38.9]} 11.
Bf4 {[%clk 0:04:46.1]} 11... e6 {[%clk 0:04:32.2]} 12. O-O-O+ {[%clk 0:04:42.6]}
12... Kc7 {[%clk 0:04:29.1]} 13. Be2 {[%clk 0:04:40.3]} 13... Bc5 {[%clk
0:04:19.4]} 14. h3 {[%clk 0:04:38.4]} 14... Bxf3 {[%clk 0:04:13.2]} 15. Bxf3
{[%clk 0:04:37.2]} 15... Bxf2 {[%clk 0:04:11.2]} 16. Rhf1 {[%clk 0:04:34]} 16...
Bb6 {[%clk 0:04:05.2]} 17. Bg5 {[%clk 0:04:32.1]} 17... Nxe5 {[%clk 0:03:50.3]}
18. Bf4 {[%clk 0:04:26.4]} 18... f6 {[%clk 0:03:47.9]} 19. Bxe5+ {[%clk
0:04:25.4]} 19... fxe5 {[%clk 0:03:43.9]} 20. Bg4 {[%clk 0:04:25.3]} 20... Rhf8
{[%clk 0:03:36.1]} 21. Bxe6 {[%clk 0:04:23.9]} 21... Be3+ {[%clk 0:03:26.2]} 22.
Kc2 {[%clk 0:04:21.3]} 22... Bf4 {[%clk 0:03:18.5]} 23. Rd7+ {[%clk 0:04:19]}
23... Kc6 {[%clk 0:03:14.5]} 24. Rfd1 {[%clk 0:04:17.4]} 24... Bh6 {[%clk
0:02:56.6]} 25. Bg4 {[%clk 0:04:02.5]} 25... Rf2+ {[%clk 0:02:51]} 26. Kb3
{[%clk 0:04:00.3]} 26... a5 {[%clk 0:02:43]} 27. Bf3+ {[%clk 0:03:59.2]} 27...
Kb6 {[%clk 0:02:30.4]} 28. Rxb7+ {[%clk 0:03:57.3]} 28... Kc5 {[%clk 0:02:27.4]}
29. Rd5+ {[%clk 0:03:54.9]} 29... Kc6 {[%clk 0:02:25.3]} 30. Rdd7+ {[%clk
0:03:51.5]} 30... Rxf3 {[%clk 0:02:19.8]} 31. gxf3 {[%clk 0:03:49.4]} 31... a4+
{[%clk 0:02:15.4]} 32. Kc4 {[%clk 0:03:48.3]} 32... e4 {[%clk 0:02:05.4]} 33.
fxe4 {[%clk 0:03:45.5]} 33... Bf4 {[%clk 0:02:02]} 34. Rxg7 {[%clk 0:03:41.9]}
34... a3 {[%clk 0:01:58.8]} 35. Rbf7 {[%clk 0:03:37.6]} 35... Ra4+ {[%clk
0:01:51.5]} 36. Kd3 {[%clk 0:03:35.3]} 36... Be5 {[%clk 0:01:47.5]} 37. Rxh7
{[%clk 0:03:33.5]} 37... Ra8 {[%clk 0:01:41.1]} 38. Rh6+ {[%clk 0:03:31.9]}
38... Kc5 {[%clk 0:01:35]} 39. Rf5 {[%clk 0:03:30.2]} 39... Re8 {[%clk
0:01:32.1]} 40. Rhh5 {[%clk 0:03:28.6]} 40... Kd6 {[%clk 0:01:29.6]} 41. Rxe5
{[%clk 0:03:27.2]} 41... Rxe5 {[%clk 0:01:26]} 42. Rxe5 {[%clk 0:03:27.1]} 42...
Kxe5 {[%clk 0:01:24.8]} 43. Ke3 {[%clk 0:03:26.8]} 43... Ke6 {[%clk 0:01:22.1]}
44. Kd4 {[%clk 0:03:25.8]} 44... Kd6 {[%clk 0:01:21.2]} 45. e5+ {[%clk 0:03:25]}
45... Kc6 {[%clk 0:01:20.1]} 46. Kc4 {[%clk 0:03:24]} 46... Kd7 {[%clk
0:01:18.1]} 47. Kd5 {[%clk 0:03:23]} 47... Ke7 {[%clk 0:01:16.3]} 48. e6 {[%clk
0:03:19.1]} 48... Kf6 {[%clk 0:01:14]} 49. Kd6 {[%clk 0:03:18.3]} 49... Kf5
{[%clk 0:01:12]} 50. e7 {[%clk 0:03:17.7]} 50... Ke4 {[%clk 0:01:11.3]} 51.
e8=Q+ {[%clk 0:03:16.7]} 51... Kd3 {[%clk 0:01:10.7]} 52. Qb5+ {[%clk
0:03:14.3]} 52... Kxc3 {[%clk 0:01:09.9]} 53. Qb3+ {[%clk 0:03:13.3]} 53... Kd2
{[%clk 0:01:08.6]} 54. Qxa3 {[%clk 0:03:12.4]} 54... Ke2 {[%clk 0:01:07.8]} 55.
Qc3 {[%clk 0:03:10.4]} 55... Kf2 {[%clk 0:01:06.5]} 56. Qd3 {[%clk 0:03:09.4]}
56... Kg2 {[%clk 0:01:05.2]} 57. Qe3 {[%clk 0:03:08.5]} 57... Kh2 {[%clk
0:01:03.6]} 58. Qf3 {[%clk 0:03:06.4]} 58... Kg1 {[%clk 0:01:02.7]} 59. Qe2
{[%clk 0:03:05.5]} 59... Kh1 {[%clk 0:01:01.5]} 60. Ke5 {[%clk 0:03:05.4]} 60...
Kg1 {[%clk 0:01:00.6]} 61. Kf4 {[%clk 0:03:05.3]} 61... Kh1 {[%clk 0:01:00]} 62.
Kg3 {[%clk 0:03:05.2]} 62... Kg1 {[%clk 0:00:59]} 63. Qd1# {[%clk 0:03:03.7]}
1-0

[Event "Live Chess"]
[Site "Chess.com"]
[Date "2024.06.02"]
[Round "-"]
[White "ACM42"]
[Black "Dhaydon19"]
[Result "0-1"]
[WhiteElo "2175"]
[BlackElo "2643"]
[TimeControl "300"]
[EndTime "4:38:44 PDT"]
[Termination "Dhaydon19 won by resignation"]

1. e4 {[%clk 0:04:54]} 1... c6 {[%clk 0:04:58.8]} 2. d4 {[%clk 0:04:52.7]} 2...
d5 {[%clk 0:04:56.8]} 3. e5 {[%clk 0:04:52.1]} 3... c5 {[%clk 0:04:52.2]} 4. c3
{[%clk 0:04:50.7]} 4... cxd4 {[%clk 0:04:51.1]} 5. cxd4 {[%clk 0:04:49.6]} 5...
Nc6 {[%clk 0:04:50.8]} 6. Nc3 {[%clk 0:04:48.9]} 6... e6 {[%clk 0:04:49.2]} 7.
Nf3 {[%clk 0:04:46.9]} 7... Nge7 {[%clk 0:04:48.9]} 8. Bd3 {[%clk 0:04:44.2]}
8... Nf5 {[%clk 0:04:48]} 9. Bxf5 {[%clk 0:04:41.5]} 9... exf5 {[%clk
0:04:47.5]} 10. O-O {[%clk 0:04:40.5]} 10... Be6 {[%clk 0:04:45.9]} 11. a3
{[%clk 0:04:37.1]} 11... Qd7 {[%clk 0:04:45.2]} 12. b4 {[%clk 0:04:36.2]} 12...
Be7 {[%clk 0:04:44.2]} 13. Ng5 {[%clk 0:04:26.3]} 13... O-O {[%clk 0:04:41]} 14.
f4 {[%clk 0:04:25.5]} 14... h6 {[%clk 0:04:39.6]} 15. Nf3 {[%clk 0:04:24.3]}
15... Rac8 {[%clk 0:04:37.7]} 16. Bb2 {[%clk 0:04:21]} 16... b6 {[%clk
0:04:34.1]} 17. Qd3 {[%clk 0:04:18.1]} 17... a5 {[%clk 0:04:23.9]} 18. b5 {[%clk
0:04:13.4]} 18... Na7 {[%clk 0:04:23]} 19. a4 {[%clk 0:04:12.5]} 19... Rc4
{[%clk 0:04:22]} 20. Nd2 {[%clk 0:04:08]} 20... Rxd4 {[%clk 0:04:21]} 21. Qxd4
{[%clk 0:04:05.2]} 21... Bc5 {[%clk 0:04:20.2]} 22. Ne2 {[%clk 0:04:00.8]} 22...
Bxd4+ {[%clk 0:04:18.8]} 23. Bxd4 {[%clk 0:04:00.1]} 23... Rc8 {[%clk
0:04:18.4]} 24. Rfc1 {[%clk 0:03:59.1]} 24... Qb7 {[%clk 0:04:14.5]} 25. Nf3
{[%clk 0:03:24.7]} 25... Rc4 {[%clk 0:04:04.3]} 26. Nd2 {[%clk 0:03:21.9]} 26...
Nc8 {[%clk 0:04:00.7]} 27. Be3 {[%clk 0:02:46.9]} 27... Ne7 {[%clk 0:03:56]} 28.
Nd4 {[%clk 0:02:44.6]} 28... Qc7 {[%clk 0:03:51.4]} 29. Nxc4 {[%clk 0:01:48.6]}
29... dxc4 {[%clk 0:03:48.9]} 30. Nxe6 {[%clk 0:01:43.2]} 30... fxe6 {[%clk
0:03:47.6]} 31. g3 {[%clk 0:01:39.8]} 31... Nd5 {[%clk 0:03:45.2]} 32. Bd4
{[%clk 0:01:39]} 32... c3 {[%clk 0:03:41.9]} 33. Ra3 {[%clk 0:01:17.7]} 33... c2
{[%clk 0:03:39.8]} 34. Bf2 {[%clk 0:01:11.5]} 34... Qc4 {[%clk 0:03:36.2]} 35.
h4 {[%clk 0:00:47]} 35... Nb4 {[%clk 0:03:25.2]} 36. Bxb6 {[%clk 0:00:42.9]}
36... Nd3 {[%clk 0:03:24]} 37. Rxd3 {[%clk 0:00:32]} 37... Qxd3 {[%clk
0:03:22.4]} 0-1

[Event "Live Chess"]
[Site "Chess.com"]
[Date "2024.06.02"]
[Round "-"]
[White "vincents82"]
[Black "Queensandpawns"]
[Result "0-1"]
[WhiteElo "1994"]
[BlackElo "2259"]
[TimeControl "300"]
[EndTime "4:39:07 PDT"]
[Termination "Queensandpawns won by resignation"]

1. e4 {[%clk 0:04:57.7]} 1... d5 {[%clk 0:04:58.8]} 2. exd5 {[%clk 0:04:56.6]}
2... c6 {[%clk 0:04:56.2]} 3. d4 {[%clk 0:04:54.4]} 3... Nf6 {[%clk 0:04:54.8]}
4. Nf3 {[%clk 0:04:53.1]} 4... Qxd5 {[%clk 0:04:54.1]} 5. c4 {[%clk 0:04:50.9]}
5... Qa5+ {[%clk 0:04:53.5]} 6. Bd2 {[%clk 0:04:49.5]} 6... Qh5 {[%clk
0:04:52.4]} 7. Be2 {[%clk 0:04:47.8]} 7... Qf5 {[%clk 0:04:40.3]} 8. Nc3 {[%clk
0:04:43.2]} 8... h5 {[%clk 0:04:38.1]} 9. Be3 {[%clk 0:04:40]} 9... e6 {[%clk
0:04:35.9]} 10. Bd3 {[%clk 0:04:38.8]} 10... Qa5 {[%clk 0:04:34.2]} 11. O-O
{[%clk 0:04:36.8]} 11... Ng4 {[%clk 0:04:30.8]} 12. h3 {[%clk 0:04:27.9]} 12...
Nxe3 {[%clk 0:04:29.4]} 13. fxe3 {[%clk 0:04:27.6]} 13... Nd7 {[%clk 0:04:21.5]}
14. Qe1 {[%clk 0:04:25.3]} 14... Bd6 {[%clk 0:04:15.7]} 15. Qf2 {[%clk
0:04:19.3]} 15... Nf6 {[%clk 0:04:13.6]} 16. Ne4 {[%clk 0:04:13.6]} 16... Nxe4
{[%clk 0:04:10.3]} 17. Bxe4 {[%clk 0:04:12.8]} 17... Bd7 {[%clk 0:04:09.5]} 18.
a3 {[%clk 0:04:10.8]} 18... O-O-O {[%clk 0:04:07.2]} 19. b4 {[%clk 0:04:09.7]}
19... Qc7 {[%clk 0:04:06]} 20. c5 {[%clk 0:04:03.1]} 20... Bg3 {[%clk
0:04:04.3]} 21. Qb2 {[%clk 0:04:01.7]} 21... f5 {[%clk 0:04:04.2]} 22. Bd3
{[%clk 0:03:59.9]} 22... g5 {[%clk 0:04:03.7]} 23. a4 {[%clk 0:03:51.6]} 23...
g4 {[%clk 0:04:02.5]} 24. Ne5 {[%clk 0:03:45.8]} 24... gxh3 {[%clk 0:03:59.8]}
25. b5 {[%clk 0:03:42.1]} 25... hxg2 {[%clk 0:03:52.4]} 26. Rfb1 {[%clk
0:03:38.9]} 26... cxb5 {[%clk 0:03:41.7]} 27. axb5 {[%clk 0:03:36.4]} 27... Bh2+
{[%clk 0:03:36.9]} 28. Kxg2 {[%clk 0:03:32.2]} 28... Rhg8+ {[%clk 0:03:34.6]}
29. Kf2 {[%clk 0:03:31.8]} 29... Bg3+ {[%clk 0:03:26.7]} 30. Ke2 {[%clk
0:03:30.5]} 30... Bxe5 {[%clk 0:03:26]} 31. Kd1 {[%clk 0:03:15.1]} 31... Rg1+
{[%clk 0:03:22.8]} 32. Kc2 {[%clk 0:03:13]} 32... Rg2+ {[%clk 0:03:21.3]} 0-1